Cogmind - Beta 14 *** ADVENTURER MODE // 2025.02.28 @ 23:31:50 Player: tycho Result: Self-destructed Performance ------------- Evolutions (1) 500 Regions Visited (2) 400 Robots Destroyed (8) 40 Value Destroyed (125) 125 Prototype IDs (4) 80 Alien Tech Used (0) 0 Bonus (0) 0 TOTAL SCORE: 1145 Bonus ------- None Cogmind --------- Core Integrity 378/400 Matter 271/300 Energy 123/125 System Corruption 0% Temperature Cool (12) Movement Flying (34) Location -9/Materials Parts ------- > --- POWER (1) -------- Light Ion Engine > --- PROPULSION (3) --- Improved Flight Unit Improved Flight Unit Improved Flight Unit > --- UTILITY (3) ------ Small Storage Unit Signal Interpreter Terrain Scanner > --- WEAPON (2) ------- Light Assault Rifle Datajack > --- INVENTORY (8) ---- Ion Engine Improved Flight Unit Medium Laser Particle Gun Peak State ------------ > --- POWER ------------ Light Ion Engine > --- PROPULSION ------- Improved Flight Unit Improved Flight Unit Improved Flight Unit > --- UTILITY ---------- Small Storage Unit Signal Interpreter Terrain Scanner > --- WEAPON ----------- Light Assault Rifle Datajack > --- INVENTORY -------- Ion Engine Improved Flight Unit Medium Laser [Rating: 15] Favorites ----------- Power Light Ion Engine Engine Light Ion Engine Propulsion Flight Unit Leg Aluminum Leg Hover Unit Hover Unit Flight Unit Flight Unit Utility Signal Interpreter Device Terrain Scanner Storage Small Storage Unit Processor Signal Interpreter Weapon Light Assault Rifle Energy Gun Medium Laser Ballistic Gun Light Assault Rifle Special Melee Weapon Datajack Build | -11 -10 -9 ------- Run | Yrd Mat Mat Slots Evolved 2 | . . 2 Power . | . . . Propulsion 1 | . . 1 Utility 1 | . . 1 Weapon . | . . . Parts Attached 17 | 5 10 2 Power 1 | 1 . . Engine 1 | 1 . . Core . | . . . Reactor . | . . . Propulsion 8 | 2 5 1 Treads . | . . . Leg 3 | 2 1 . Wheel . | . . . Hover 1 | . 1 . Flight 4 | . 3 1 Utility 3 | . 2 1 Device 1 | . 1 . Storage 1 | . . 1 Processor 1 | . 1 . Hackware . | . . . Protection . | . . . Artifact . | . . . Weapon 5 | 2 3 . Energy Gun 3 | 2 1 . Energy Cannon . | . . . Ballistic Gun 1 | . 1 . Ballistic Cannon . | . . . Launcher . | . . . Special Weapon . | . . . Impact Weapon . | . . . Slashing Weapon . | . . . Piercing Weapon . | . . . Special Melee Weapon 1 | . 1 . Unidentified Prototypes 1 | . 1 . Parts Lost . | . . . Power . | . . . Propulsion . | . . . Utility . | . . . Weapon . | . . . Highest Loss Streak . | . . . To Critical Strikes . | . . . Average Slot Usage (%) 83 | . 81 100 Engine 13 | . 14 11 Leg 2 | . 2 . Hover 4 | . 5 . Flight 13 | . 11 33 Device 12 | . 12 11 Storage 1 | . . 11 Processor 13 | . 13 11 Energy Gun 8 | . 9 . Ballistic Gun 8 | . 8 11 Special Melee Weapon 4 | . 3 11 Peak Build Rating 15 | 5 11 15 Average Rating 6 | 4 6 14 On Entrance 5 | . 5 11 Naked Turns . | . . . Heaviest Build 11 | 7 7 11 Greatest Support 20 | 20 20 15 Greatest Overweight (x) 1 | . 1 . Average Overweight (x) . | . . . Largest Inventory Capacity 8 | 5 5 8 Average Capacity 5 | 5 5 7 Most Carried 5 | 2 5 4 Average Carried 4 | 1 4 3 Final Capacity 8 | 5 5 8 Final Carried 5 | 2 5 4 Class Distribution -------------------- 100% | Mutant Dominant Class ---------------- Mutant | -10/Materials Mutant | -9/Materials Resources | -11 -10 -9 ----------- Run | Yrd Mat Mat Matter Collected 367 | 180 187 . Remotely . | . . . Salvage Created 352 | . 352 . Parts 11 | . 11 . Haulers Intercepted 1 | . 1 . Recyclers Shooed 2 | . 2 . Parts Field Recycled . | . . . Retrieved Matter . | . . . Parts Self-Destructed . | . . . Prevented . | . . . Kills | -11 -10 -9 ------- Run | Yrd Mat Mat Combat Hostiles Destroyed 5 | . 5 . Guns 5 | . 5 . Classes Destroyed 4 | . 4 . Hauler 1 | . 1 . Recycler 2 | . 2 . Swarmer 3 | . 3 . Grunt 2 | . 2 . Best Kill Streak 3 | . 3 . Combat Bots Only 3 | . 3 . Max Kills in Single Turn 1 | . 1 . Gunslinging . | . . . Exploded . | . . . Melee . | . . . Uniques/NPCs Destroyed . | . . . Combat | -11 -10 -9 -------- Run | Yrd Mat Mat Hostile Shots Fired 36 | . 30 6 Missed 14 | . 12 2 Damage Taken 190 | . 145 45 Core 53 | . 31 22 Absorbed by Shields . | . . . Ignored by Resistances 59 | . 46 13 Core Remaining (%) 93 | 100 87 . Volleys Fired 52 | . 52 . Largest 2 | . 2 . Hottest 70 | . 70 . Shots Fired 58 | . 58 . Gun 58 | . 58 . Cannon . | . . . Launcher . | . . . Special . | . . . Kinetic 26 | . 26 . Thermal 32 | . 32 . Explosive . | . . . Electromagnetic . | . . . Robot Hit Streak 15 | . 15 . Robot Miss Streak 4 | . 4 . Penetration Max . | . . . Secondary Targets . | . . . Shots Hit Robots 44 | . 44 . Core Hits 18 | . 18 . Critical Kills . | . . . Critical Parts Destroyed . | . . . Critical Strikes 3 | . 3 . Burn 3 | . 3 . Melee Attacks 2 | . 2 . Impact . | . . . Slashing . | . . . Piercing . | . . . Sneak Attacks 2 | . 2 . Combat Hostiles . | . . . Follow-up Attacks . | . . . Damage Inflicted 464 | . 464 . Guns 464 | . 464 . Cannons . | . . . Explosions . | . . . Melee . | . . . Ramming . | . . . Kinetic 138 | . 138 . Thermal 326 | . 326 . Explosive . | . . . Electromagnetic . | . . . Impact . | . . . Slashing . | . . . Piercing . | . . . Highest Corruption . | . . . Average Corruption . | . . . Corruption Purged . | . . . Corruption Blocked . | . . . Overload Shots . | . . . Overflow Damage . | . . . Projectiles . | . . . Explosions . | . . . Melee . | . . . Knockbacks . | . . . Impact . | . . . Kinetic . | . . . Secondary . | . . . Self-Inflicted Damage . | . . . Shots . | . . . Rammed . | . . . Targets Rammed . | . . . Kicked . | . . . Crushed . | . . . Highest Temperature 133 | . 133 . Average Temperature 31 | . 31 . Received Heat Transfer 87 | . 63 24 Siege Activations . | . . . Robots Corrupted . | . . . Combat Hostiles . | . . . Parts Fried . | . . . Impact Corruptions . | . . . Robots Melted . | . . . Combat Hostiles . | . . . Parts Melted 3 | . 3 . Heat Transferred 1184 | . 1184 . Parts Sabotaged . | . . . Parts Stolen . | . . . Parts Stripped . | . . . Power Chain Reactions . | . . . Alert | -11 -10 -9 ------- Run | Yrd Mat Mat Peak Influence 128 | . 128 109 Initial 10 | . . 10 Average 29 | . 28 63 Maximum Alert Level . | . . . Low Security (%) 100 | 100 100 100 Level 1 . | . . . Level 2 . | . . . Level 3 . | . . . Level 4 . | . . . Level 5 . | . . . High Security . | . . . Max Security . | . . . Squads Dispatched . | . . . Investigation . | . . . Extermination . | . . . Reinforcement . | . . . Assault . | . . . Garrison . | . . . Intercept . | . . . Searches Triggered . | . . . Construction Impeded . | . . . Haulers Reinforced . | . . . Active Scanning Responses . | . . . Cargo Convoy Interrupts . | . . . Stealth | -11 -10 -9 --------- Run | Yrd Mat Mat Distress Signals 4 | . 3 1 Communications Jammed . | . . . Distress Signals . | . . . Times Spotted 22 | . 16 6 Peak Tracking Total 6 | . 4 6 Tactical Retreats . | . . . Traps | -11 -10 -9 ------- Run | Yrd Mat Mat Traps Triggered . | . . . Indirectly . | . . . Trap Hack Attempts . | . . . Triggered . | . . . Disarmed . | . . . Reprogrammed 1 | . 1 . Reused . | . . . Traps Extracted . | . . . Installed . | . . . Triggered . | . . . Machines | -11 -10 -9 ---------- Run | Yrd Mat Mat Machines Disabled . | . . . Max in Single Turn . | . . . Machines Repaired . | . . . Machines Dismantled . | . . . Machines Sabotaged . | . . . Overloaded Fab Kills . | . . . Hacking | -11 -10 -9 --------- Run | Yrd Mat Mat Machines Accessed 6 | . 4 2 Terminals 6 | . 4 2 Fabricators . | . . . Repair Stations . | . . . Recycling Units . | . . . Scanalyzers . | . . . Garrison Access . | . . . Total Hacks 14 | . 8 6 Successful 9 | . 6 3 Failed 5 | . 2 3 Catastrophic . | . . . Database Lockouts . | . . . Manual . | . . . Terminals 14 | . 8 6 Fabricators . | . . . Repair Stations . | . . . Recycling Units . | . . . Scanalyzers . | . . . Garrison Access . | . . . Terminal Hacks 9 | . 6 3 Prototype ID Bank 1 | . . 1 Branch Access Points 1 | . 1 . Emergency Access Points 2 | . 2 . Locate Traps 2 | . 2 . Reprogram Traps 1 | . 1 . Zone Layout 2 | . . 2 Fabricator Hacks . | . . . Repair Station Hacks . | . . . Recycling Unit Hacks . | . . . Scanalyzer . | . . . Garrison Access Hacks . | . . . Unauthorized Hacks . | . . . Terminals . | . . . Fabricators . | . . . Repair Stations . | . . . Recycling Units . | . . . Scanalyzers . | . . . Garrison Access . | . . . Data Cores Recovered . | . . . Used . | . . . Hacking Detections 4 | . 2 2 Full Trace Events . | . . . Feedback Events . | . . . Feedback Blocked . | . . . Robot Schematics Acquired . | . . . Robots Built . | . . . Authchips . | . . . Time . | . . . Total Robot Build Rating . | . . . Part Schematics Acquired . | . . . Parts Built . | . . . Authchips . | . . . Time . | . . . Total Part Build Rating . | . . . Parts Repaired . | . . . Time . | . . . Parts Recycled . | . . . Recycled Matter . | . . . Retrieved Matter . | . . . Retrieved Components . | . . . Parts Scanalyzed . | . . . Part Schematics Acquired . | . . . Parts Damaged . | . . . Bothacking | -11 -10 -9 ------------ Run | Yrd Mat Mat Used RIF Installer . | . . . Robots Hacked 1 | . 1 . Non-combat 1 | . 1 . Combat . | . . . Robot Hacks Applied 1 | . 1 . parse_system 1 | . 1 . Relay Couplers Released . | . . . Fabnet Peak Effective % . | . . . Robots Rewired . | . . . Allies Hacked . | . . . Hacks Repelled . | . . . Allies | -11 -10 -9 -------- Run | Yrd Mat Mat Total Allies . | . . . Largest Group . | . . . Highest-Rated Group . | . . . Highest-Rated Ally . | . . . Total Orders . | . . . Ally Attacks . | . . . Total Damage . | . . . Kills . | . . . Allies Corrupted . | . . . Allies Melted . | . . . Intel | -11 -10 -9 ------- Run | Yrd Mat Mat Robot Analysis Total . | . . . Derelict Logs Recovered . | . . . Drone Launches . | . . . Drone Recoveries . | . . . Exploration | -11 -10 -9 ------------- Run | Yrd Mat Mat Turns Passed 1031 | 75 859 97 Spaces Moved 1132 | 59 800 273 Core 6 | 6 . . Treads . | . . . Legs 164 | 53 111 . Wheels . | . . . Hover 129 | . 129 . Flight 833 | . 560 273 Fastest Speed 34 | 50 37 34 Average Speed 78 | 112 90 34 Slowest Speed 120 | 120 120 34 Overloaded Moves . | . . . Propulsion Burnouts . | . . . Robots Hopped . | . . . Cave-ins Triggered . | . . . Exploration Rate (%) 24 | 4 51 19 Regions Visited 2 Branch Regions . Pre-discovered Areas . | . . . Known Exits Taken 1 | . 1 . Unknown Exits Taken 1 | 1 . . Scrap Searched . | . . . Spaces Dug . | . . . Terrain Destroyed . | . . . Melee . | . . . Projectile . | . . . AOE . | . . . Terrain Rammed . | . . . Walls Destroyed . | . . . Machines Disabled . | . . . Actions | -11 -10 -9 --------- Run | Yrd Mat Mat Total 1223 | 65 881 277 Wait . | . . . Move 1130 | 58 799 273 Hop . | . . . Pick Up 10 | 2 7 1 Fast Attach 11 | 5 5 1 Attach 3 | . 2 1 Detach 3 | . 3 . Swap 3 | . 3 . Drop 9 | . 8 1 Fire 52 | . 52 . Melee 2 | . 2 . Ram . | . . . Kick . | . . . Crush . | . . . Escape Stasis . | . . . Rewire . | . . . Trap . | . . . Miscellaneous . | . . . Route ------- -11/Scrapyard -10/Materials (discovered 2 exits: *Mat / Min) -9/Materials History --------- Turn | Location | Event 13 | -11/Scrapyard | Discovered new exit (range 15) 76 | -11/Scrapyard | Entered Materials 309 | -10/Materials | Build established: Mutant 592 | -10/Materials | Identified exit to Mines 929 | -10/Materials | Discovered new exit (range 16) 934 | -10/Materials | Identified exit to Materials 935 | -10/Materials | Entered another Materials area 935 | -9/Materials | Evolved 2 slots: Propulsion x1, Utility x1 1032 | -9/Materials | Self-destructed Last Messages --------------- PARAMETERS=PROPULSION+1,UTILITY+1 LOCATION=MATERIALS GOAL=ESCAPE 00939_ Dropped Sml. Storage Unit. 00939_ Acquired Sml. Storage Unit. 00941_ Acquired Particle Gun. 00950_ Connecting with Terminal... >>Prototypes Downloading prototype IDs... Imp. VTOL Module Imp. EM Shotgun Hvy. Ion Engine >>Layout(Zone) Retrieving Zone 7K layout... Downloaded map data. 01008_ Connecting with Terminal... >>Layout(Zone) Retrieving Zone 7T layout... Downloaded map data. 01011_ W-16 Scout distress signal alerts nearby ally. Map ----- +----------------------------------------------------+ | ?????????????????????????????????? | | ?????????????????????????????????? | | ?????????????????????????????????? | | ?????????????????????????????????? | | ?????????????????????????????????? | | ?????????????????????????????????? | | ?????????????????????????????????? | | ?????????????????????????????????? | | ?????????????????????????????????? | | ?????????????????????????????????? | | ?????????????????????????????????? | | ???????????? ?? ?????????????????? | | ???????????# ?? ????????????????? | | ????#??????# ##/#????????????????? | | ???????????# #????????????????? | | ???????#???# #????????????????? | | ???????????# #????????????????? | | ???????#???# ############ #???? | | ???????????# #???? | | ???#???????#! #???? | | ##########?# #???? | | # #?# t #???? | | # """"" ### #???? | | # """"" # g ### #???? | | # """"" # g w #?# #???? | | # """"" @ #?# #???? | | # """"" # #?# ####???? | | # """"" # g #?# #??????? | | # """"" # ### ##?????? | | # # ## #?????? | | #######+## ## #?????? | | ?##### # ## #?????? | | ?##! "T" #########?????? | | ?#! ######### ############??? | | ?#! ## ##?#???#?# ## T #??? | | ?#! ##+########## + #??? | | ?#! ## ## # #??? | | ?##! ## ## # !! ##?? | | ?###### # # !! #?? | | ??????# / + ##?? | | ??????# # # #??? | | ??????# # # #??? | | ??????# # ###+########## | | ?????## # # # | | ?????############ # # | | ?#?????????#??#?# # # | | ????????????????### #*!! # | | ??????????######### #*!! # | | ??????????# #!! # | | ??????????# # ! # | +----------------------------------------------------+ Best States ------------- Heat Dissipation 28 Energy Generation 10 Energy Capacity 125 Matter Stores 300 Matter Capacity 300 Sight Range 16 Terrain Scan Range 14 Terrain Scan Density 10 Resistance: KI 20 Resistance: TH 20 Resistance: EX 20 Resistance: EM 20 Resistance: I 20 Resistance: S 20 Resistance: P 20 Evasion (%) 63 Offensive Hacking 10 Item Schematics ----------------- None Robot Schematics ------------------ None Fabricated ------------ Nothing Alien Tech Used ----------------- None Achievements -------------- None Challenges ------------ None Game ------ Seed TeleporterSegregatorBay Manual? 0 Play Time 00:12:28 Cumulative 25.6 hours Start 2025.02.28 @ 23:16:54 End 2025.02.28 @ 23:31:50 Sessions 2 Manual Loads 0 Difficulty Adventurer Special Mode None Game No. 30 Rogue 0 Adventurer 30 Explorer 0 Win Type - Total 0 Types 0/0/0/0/0/0/0/0/0 Lore% 15 Gallery% 29 Achievement% 23 Wizard Run 0 Options --------- Layout 1 ASCII 0 Keyboard 1 Movement Arrows Keybinds 0 Fullscreen 1 Font 32/SmallcapsGlow Map View 77x35 Zoom Use 0% Tactical HUD 1 Map Filters NONE Filters NONE Steam 1 RUN: 44fbde69-734c-489e-bc6f-50580827fd9d